Cogmind - Beta 15 @@@ ROGUE MODE // 2025.10.15 @ 22:05:07 Player: Humbble Result: Destroyed by G-47 Trooper with Particle Gun Performance ------------- Evolutions (2) 1000 Regions Visited (3) 600 Robots Destroyed (70) 350 Value Destroyed (1958) 1958 Prototype IDs (0) 0 Alien Tech Used (0) 0 Bonus (0) 0 TOTAL SCORE: 3908 Bonus ------- None Cogmind --------- Core Integrity 0/550 Matter 245/300 Energy 29/100 System Corruption 0% Temperature Warning (383) Movement Core (700) Ox13 Location -8/Materials Parts ------- > --- POWER (1) -------- (None) > --- PROPULSION (4) --- Advanced Treads > --- UTILITY (3) ------ High-capacity Storage Unit > --- WEAPON (3) ------- (None) > --- INVENTORY (20) --- Light Deuterium Engine Light Deuterium Engine VSS Leg Heat Sink Improved Heat Sink Heavy Mace Peak State ------------ > --- POWER ------------ Improved Ion Engine > --- PROPULSION ------- Aluminum Leg Carbon-fiber Leg Carbon-fiber Leg Carbon-fiber Leg > --- UTILITY ---------- Improved Heat Sink High-capacity Storage Unit Light Armor Plating > --- WEAPON ----------- Particle Gun Light Assault Rifle Heavy Assault Rifle > --- INVENTORY -------- Ion Engine Improved Ion Engine Improved Ion Engine Improved Ion Engine Nuclear Core Aluminum Leg Aluminum Leg Aluminum Leg Aluminum Leg Heat Sink Large Storage Unit Light Armor Plating Beam Rifle Heavy Mace [Rating: 24] Favorites ----------- Power Improved Ion Engine Engine Improved Ion Engine Power Core Nuclear Core Propulsion Aluminum Leg Treads Light Treads Leg Aluminum Leg Utility Light Armor Plating Device Heat Sink Storage Large Storage Unit Protection Light Armor Plating Weapon Light Assault Rifle Energy Gun Particle Gun Ballistic Gun Light Assault Rifle Build | -11 -10 -9 -8 ------- Run | Yrd Mat Mat Mat Slots Evolved 4 | . . 2 2 Power . | . . . . Propulsion 2 | . . 1 1 Utility 1 | . . 1 . Weapon 1 | . . . 1 Parts Attached 76 | 9 10 25 32 Power 12 | 1 1 4 6 Engine 10 | 1 1 4 4 Core 2 | . . . 2 Reactor . | . . . . Propulsion 29 | 4 5 9 11 Treads 3 | 2 . . 1 Leg 26 | 2 5 9 10 Wheel . | . . . . Hover . | . . . . Flight . | . . . . Utility 15 | 2 3 5 5 Device 6 | 1 . 1 4 Storage 4 | 1 3 . . Processor . | . . . . Hackware . | . . . . Protection 5 | . . 4 1 Artifact . | . . . . Weapon 20 | 2 1 7 10 Energy Gun 8 | . . 4 4 Energy Cannon . | . . . . Ballistic Gun 12 | 2 1 3 6 Ballistic Cannon . | . . . . Launcher . | . . . . Special Weapon . | . . . . Impact Weapon . | . . . . Slashing Weapon . | . . . . Piercing Weapon . | . . . . Special Melee Weapon . | . . . . Unidentified Prototypes . | . . . . Parts Lost 37 | . . 5 32 Power 3 | . . . 3 Propulsion 14 | . . . 14 Utility 6 | . . 2 4 Weapon 14 | . . 3 11 Highest Loss Streak 21 | . . 1 21 To Critical Strikes . | . . . . Average Backups 13 | 3 8 14 16 Power 3 | . 2 3 4 Propulsion 5 | 1 3 6 6 Utility 1 | . . 1 2 Weapon 2 | . 2 2 3 Tool/Special . | . . . . Unused Backups 15 | . 6 4 5 Power 6 | . 2 1 3 Propulsion 1 | . . . 1 Utility 1 | . 1 . . Weapon 7 | . 3 3 1 Tool/Special . | . . . . Average Slot Usage (%) 95 | . 96 95 94 Engine 9 | . 14 11 5 Core 1 | . . . 3 Leg 32 | . 27 32 35 Device 9 | . 8 10 9 Storage 12 | . 17 11 9 Protection 5 | . . 7 7 Energy Gun 6 | . . 13 5 Ballistic Gun 17 | . 27 8 18 Peak Build Rating 24 | 7 8 20 24 Average Rating 14 | 5 7 12 21 On Entrance 8 | . 7 8 20 Naked Turns . | . . . . Heaviest Build 58 | 15 49 37 58 Greatest Support 55 | 40 20 45 55 Greatest Overweight (x) 14 | . 2 1 14 Average Overweight (x) . | . . . . Largest Inventory Capacity 20 | 8 20 15 20 Average Capacity 15 | 7 11 15 19 Most Carried 20 | 4 14 15 20 Average Carried 13 | 3 8 14 16 Final Capacity 20 | 8 15 15 20 Final Carried 15 | 4 14 15 6 Class Distribution -------------------- 39% | Scavenger-Mutant 32% | Mutant 24% | Scavenger-Tank 3% | Scavenger-Skirmisher Dominant Class ---------------- Mutant | -10/Materials Scavenger-Mutant | -9/Materials Scavenger-Tank | -8/Materials Resources | -11 -10 -9 -8 ----------- Run | Yrd Mat Mat Mat Matter Collected 1762 | 225 405 437 695 Remotely . | . . . . Salvage Created 2514 | 54 405 936 1119 Parts 153 | 8 24 52 69 Haulers Intercepted 1 | . . . 1 Recyclers Shooed 5 | 1 . 2 2 Parts Field Recycled . | . . . . Retrieved Matter . | . . . . Parts Self-Destructed . | . . . . Prevented . | . . . . Kills | -11 -10 -9 -8 ------- Run | Yrd Mat Mat Mat Combat Hostiles Destroyed 61 | . 13 22 26 Guns 61 | . 13 22 26 Classes Destroyed 12 | 1 2 6 3 Worker 2 | . . 1 1 Builder 1 | . . . 1 Tunneler 3 | 3 . . . Hauler 1 | . . . 1 Recycler 1 | . . 1 . Watcher 1 | . . 1 . Swarmer 22 | . 6 8 8 Grunt 24 | . 7 5 12 Brawler 1 | . . 1 . Duelist 1 | . . 1 . Sentry 12 | . . 7 5 Hunter 1 | . . . 1 Best Kill Streak 6 | 3 6 4 5 Combat Bots Only 6 | . 6 4 4 Max Kills in Single Turn 2 | 1 1 2 2 Gunslinging 1 | . . . 1 Exploded . | . . . . Melee . | . . . . Uniques/NPCs Destroyed . | . . . . Combat | -11 -10 -9 -8 -------- Run | Yrd Mat Mat Mat Hostile Shots Fired 515 | . 51 155 309 Missed 139 | . 11 56 72 Hits 376 | . 40 99 237 Melee 7 | . . 7 . Projectile 369 | . 40 92 237 Critical Strikes 17 | . 1 3 13 Damage Taken 5641 | . 403 1367 3871 Core 941 | . 50 326 565 Absorbed by Shields . | . . . . Redirected to Shielding 2 | . . 2 . Core Remaining (%) 66 | 100 80 18 . Volleys Fired 201 | 6 35 67 93 Largest 3 | 2 2 2 3 Hottest 130 | 40 40 121 130 Shots Fired 437 | 11 70 123 233 Gun 437 | 11 70 123 233 Cannon . | . . . . Launcher . | . . . . Special . | . . . . Kinetic 306 | 11 70 45 180 Thermal 131 | . . 78 53 Explosive . | . . . . Electromagnetic . | . . . . Robot Hit Streak 34 | 2 12 34 10 Robot Miss Streak 5 | 1 2 5 5 Penetration Max . | . . . . Secondary Targets 9 | . . 3 6 Max Gunslinging Chain 2 | . . 1 2 Shots Hit Robots 293 | 6 47 87 153 Core Hits 139 | 4 23 42 70 Critical Kills 1 | . . 1 . Critical Parts Destroyed 1 | . . . 1 Critical Strikes 8 | . . 6 2 Burn 6 | . . 5 1 Destroy 2 | . . 1 1 Melee Attacks . | . . . . Impact . | . . . . Slashing . | . . . . Piercing . | . . . . Sneak Attacks . | . . . . Combat Hostiles . | . . . . Follow-up Attacks . | . . . . Damage Inflicted 4073 | 95 592 1232 2154 Guns 4015 | 95 584 1221 2115 Cannons . | . . . . Explosions . | . . . . Melee . | . . . . Ramming 58 | . 8 11 39 Kinetic 2583 | 95 584 342 1562 Thermal 1432 | . . 879 553 Explosive . | . . . . Electromagnetic . | . . . . Impact . | . . . . Slashing . | . . . . Piercing . | . . . . Highest Corruption 3 | . . 3 . Average Corruption 3 | . . 3 . Corruption Purged . | . . . . Corruption Blocked . | . . . . Effects 33 | . . 33 . Message Errors 11 | . . 11 . Matter Fused 9 | . . 9 . Heat Flow Errors 3 | . . 3 . Energy Discharges 4 | . . 4 . Data Loss (minor) 3 | . . 3 . Data Loss (major) 2 | . . 2 . Weapon Failures 1 | . . 1 . Overload Shots . | . . . . Overflow Damage . | . . . . Projectiles . | . . . . Explosions . | . . . . Melee . | . . . . Knockbacks 2 | . 1 . 1 Impact 2 | . 1 . 1 Kinetic . | . . . . Secondary . | . . . . Self-Inflicted Damage . | . . . . Shots . | . . . . Rammed . | . . . . Targets Rammed 9 | . 1 3 5 Kicked 9 | . 1 3 5 Crushed . | . . . . Highest Temperature 409 | . 20 207 409 Average Temperature 70 | . 6 58 103 Received Heat Transfer 2223 | . 141 417 1665 Effects 3 | . . . 3 Energy Bleed 2 | . . . 2 Interference 1 | . . . 1 Siege Activations . | . . . . Martial Activations . | . . . . Shielding Activations . | . . . . Robots Disrupted . | . . . . Combat Hostiles . | . . . . Robots Corrupted . | . . . . Combat Hostiles . | . . . . Parts Fried . | . . . . Impact Corruptions . | . . . . Robots Melted . | . . . . Combat Hostiles . | . . . . Parts Melted 10 | . . 10 . Heat Transferred 4070 | . . 2627 1443 Parts Sabotaged . | . . . . Parts Stolen . | . . . . Parts Stripped . | . . . . Power Chain Reactions . | . . . . Alert | -11 -10 -9 -8 ------- Run | Yrd Mat Mat Mat Maximum Alert Level . | . . . . Low Security (%) 100 | 100 100 100 100 Level 1 . | . . . . Level 2 . | . . . . Level 3 . | . . . . Level 4 . | . . . . Level 5 . | . . . . High Security . | . . . . Max Security . | . . . . Peak Influence 189 | 5 124 189 188 Initial 73 | . . . 73 Average 56 | . 28 66 74 Influence Increases 1636 | 15 335 617 669 Destroy 0b10 Robot/C 1220 | . 260 440 520 Destroy 0b10 Robot/NC 45 | 15 . 15 15 Destroy Leader 304 | . 70 132 102 Successful Hack 5 | . 5 . . Disable Machine 15 | . . . 15 Destroy Structure 2 | . . . 2 Lose Combat Pursuer 45 | . . 30 15 Influence Decreases 1636 | 15 335 442 844 Entered New Map 102 | . . . 102 Time Decay 1293 | 15 335 412 531 Lost Part 241 | . . 30 211 Squads Dispatched 12 | . 3 3 6 Investigation 1 | . 1 . . Extermination . | . . . . Reinforcement 9 | . 2 3 4 Assault . | . . . . Garrison 2 | . . . 2 Intercept . | . . . . Searches Triggered . | . . . . Construction Impeded 2 | . . . 2 Haulers Reinforced . | . . . . Active Scanning Responses . | . . . . Cargo Convoy Interrupts . | . . . . Stealth | -11 -10 -9 -8 --------- Run | Yrd Mat Mat Mat Distress Signals 7 | . 2 2 3 Communications Jammed . | . . . . Distress Signals . | . . . . Times Spotted 102 | . 20 30 52 Peak Tracking Total 7 | . 6 5 7 Tactical Retreats 3 | . . 2 1 Traps | -11 -10 -9 -8 ------- Run | Yrd Mat Mat Mat Traps Triggered 6 | . 4 1 1 Indirectly . | . . . . Trap Hack Attempts . | . . . . Triggered . | . . . . Disarmed . | . . . . Reprogrammed . | . . . . Reused . | . . . . Traps Extracted . | . . . . Installed . | . . . . Triggered . | . . . . Machines | -11 -10 -9 -8 ---------- Run | Yrd Mat Mat Mat Machines Disabled 1 | . . . 1 Max in Single Turn 1 | . . . 1 Garrison Access 1 | . . . 1 Machines Repaired . | . . . . Machines Dismantled . | . . . . Machines Sabotaged . | . . . . Overloaded Fab Kills . | . . . . Hacking | -11 -10 -9 -8 --------- Run | Yrd Mat Mat Mat Machines Accessed 5 | . 2 1 2 Terminals 3 | . 2 . 1 Fabricators . | . . . . Repair Stations . | . . . . Recycling Units 1 | . . 1 . Scanalyzers . | . . . . Garrison Access 1 | . . . 1 Total Hacks 10 | . 5 1 4 Successful 4 | . 2 1 1 Failed 6 | . 3 . 3 Catastrophic 1 | . . . 1 Database Lockouts . | . . . . Manual . | . . . . Terminals 7 | . 5 . 2 Fabricators . | . . . . Repair Stations . | . . . . Recycling Units 1 | . . 1 . Scanalyzers . | . . . . Garrison Access 2 | . . . 2 Terminal Hacks 2 | . 2 . . Branch Access Points 1 | . 1 . . Zone Layout 1 | . 1 . . Fabricator Hacks . | . . . . Repair Station Hacks . | . . . . Recycling Unit Hacks 1 | . . 1 . Report Inventory 1 | . . 1 . Scanalyzer . | . . . . Garrison Access Hacks 1 | . . . 1 Seal Access 1 | . . . 1 Unauthorized Hacks . | . . . . Terminals . | . . . . Fabricators . | . . . . Repair Stations . | . . . . Recycling Units . | . . . . Scanalyzers . | . . . . Garrison Access . | . . . . Data Cores Recovered . | . . . . Used . | . . . . Hacking Detections 4 | . 2 . 2 Full Trace Events 1 | . 1 . . Feedback Events . | . . . . Feedback Blocked . | . . . . Robot Schematics Acquired . | . . . . Robots Built . | . . . . Authchips . | . . . . Time . | . . . . Total Robot Build Rating . | . . . . Part Schematics Acquired . | . . . . Parts Built . | . . . . Authchips . | . . . . Time . | . . . . Total Part Build Rating . | . . . . Parts Repaired . | . . . . Time . | . . . . Parts Recycled . | . . . . Recycled Matter . | . . . . Retrieved Matter . | . . . . Retrieved Components . | . . . . Parts Scanalyzed . | . . . . Part Schematics Acquired . | . . . . Parts Damaged . | . . . . Bothacking | -11 -10 -9 -8 ------------ Run | Yrd Mat Mat Mat Used RIF Installer . | . . . . Robots Hacked . | . . . . Non-combat . | . . . . Combat . | . . . . Robot Hacks Applied . | . . . . Relay Couplers Released . | . . . . Fabnet Peak Effective % . | . . . . Robots Rewired . | . . . . Allies Hacked . | . . . . Hacks Repelled . | . . . . Allies | -11 -10 -9 -8 -------- Run | Yrd Mat Mat Mat Total Allies . | . . . . Largest Group . | . . . . Highest-Rated Group . | . . . . Highest-Rated Ally . | . . . . Total Orders . | . . . . Ally Attacks . | . . . . Total Damage . | . . . . Kills . | . . . . Allies Corrupted . | . . . . Allies Melted . | . . . . Intel | -11 -10 -9 -8 ------- Run | Yrd Mat Mat Mat Active Infowar (turns) 963 | 108 714 . 141 Sensors 141 | . . . 141 Seismic 822 | 108 714 . . Robot Analysis Total . | . . . . Derelict Logs Recovered . | . . . . Drone Launches . | . . . . Drone Recoveries . | . . . . Exploration | -11 -10 -9 -8 ------------- Run | Yrd Mat Mat Mat Turns Passed 4743 | 214 1229 1504 1796 Spaces Moved 2359 | 146 709 688 816 Core 5 | 4 . . 1 Treads 8 | 8 . . . Legs 2346 | 134 709 688 815 Wheels . | . . . . Hover . | . . . . Flight . | . . . . Fastest Speed 50 | 50 120 120 120 Average Speed 165 | 120 151 178 175 Slowest Speed 750 | 160 260 190 750 Overloaded Moves . | . . . . Propulsion Burnouts . | . . . . Robots Hopped . | . . . . Potential Cave-ins . | . . . . Cave-ins Triggered . | . . . . Exploration Rate (%) 47 | 5 79 51 53 Regions Visited 3 Branch Regions . Pre-discovered Areas . | . . . . Known Exits Taken . | . . . . Unknown Exits Taken 3 | 1 1 1 . Scrap Searched . | . . . . Spaces Dug . | . . . . Terrain Destroyed . | . . . . Melee . | . . . . Projectile . | . . . . AOE . | . . . . Terrain Rammed . | . . . . Walls Destroyed . | . . . . Machines Disabled . | . . . . Actions | -11 -10 -9 -8 --------- Run | Yrd Mat Mat Mat Total 2812 | 168 798 845 1001 Wait 45 | 1 13 25 6 Move 2356 | 145 708 687 816 Hop . | . . . . Pick Up 46 | 3 14 13 16 Fast Attach 23 | 8 6 4 5 Attach 26 | . . 3 23 Detach 3 | 1 . . 2 Swap 53 | 4 9 19 21 Drop 50 | . 12 24 14 Fire 201 | 6 35 67 93 Melee . | . . . . Ram . | . . . . Kick 9 | . 1 3 5 Crush . | . . . . Escape Stasis . | . . . . Rewire . | . . . . Trap . | . . . . Miscellaneous . | . . . . Route ------- -11/Scrapyard -10/Materials (discovered 4 exits: *Mat x2 / *Min x2) -9/Materials (discovered 2 exits: *Mat / [*Min]) -8/Materials History --------- Turn | Location | Event 6 | -11/Scrapyard | Discovered new exit (range 15) 215 | -11/Scrapyard | Entered Materials 311 | -10/Materials | Build established: Mutant 427 | -10/Materials | Discovered new exit (range 15) 570 | -10/Materials | Discovered new exit (range 9) 948 | -10/Materials | Discovered new exit (range 9) 1319 | -10/Materials | Discovered new exit (range 7) 1383 | -10/Materials | Identified exit to Mines 1444 | -10/Materials | Entered another Materials area 1444 | -9/Materials | Evolved 2 slots: Propulsion x1, Utility x1 1784 | -9/Materials | Build established: Scavenger-Mutant 1990 | -9/Materials | Core integrity fell below 50% 2296 | -9/Materials | Discovered new exit (range 16) 2739 | -9/Materials | Discovered new exit (range 16) 2891 | -9/Materials | Core integrity fell below 20% 2948 | -9/Materials | Entered another Materials area 2948 | -8/Materials | Evolved 2 slots: Propulsion x1, Weapon x1 3268 | -8/Materials | Garrison activated, responded to threat 3720 | -8/Materials | Build established: Scavenger-Tank 4484 | -8/Materials | Lost 6 parts (2n1u3w) 4659 | -8/Materials | Core integrity fell below 50% 4702 | -8/Materials | Core integrity fell below 20% 4744 | -8/Materials | Destroyed by G-47 Trooper with Particle Gun Last Messages --------------- 04698_ Aluminum Leg destroyed. 04705_ U-05 Engineer builds a Door. 04707_ U-05 Engineer builds a Wall. 04717_ Adv. Heat Sink destroyed. 04717_ Critical hit (Blast). 04718_ Critical hit (Burn: +37). 04722_ Aluminum Leg destroyed. 04722_ Knocked back. 04725_ G-47 Trooper suffers critical hit (Burn). 04725_ Particle Gun destroyed. 04729_ G-47 Trooper overheating. 04730_ G-47 Trooper heat damages Aluminum Leg. 04730_ G-47 Trooper destroyed. 04735_ Overheating: Energy bleed (-2). 04735_ Critical hit (Burn: +37). 04740_ Overheating: Energy bleed (-3). 04740_ Carbon-fiber Leg destroyed. 04741_ Overheating: System interference. 04741_ Particle Gun temporarily disabled. 04742_ Particle Gun destroyed. Map ----- +----------------------------------------------------+ | | | | | | | | | | | | | | | | | | | | | | | | | ???????????????###############???????????????????? | | ???????????????# #???????????????????? | | ???????????????# #???????????????????? | | ??#########????# #???????????????????? | | ??# #????# #???????????????????? | | ??# #????# #???????????????????? | | ??# #????# #???????????????????? | | ??# #????# #???????????????????? | | ### #????# #???????????????????? | | #"# ! ###### % #???????????????????? | | %/ / / +?? #??????????????? | | % # %% # # # #??????????????? | | / % # #######+####### #??????????????? | | ### # g % @ g #??????????????? | | ??# # mg g % #??????????????? | | ??# u u H +??????????????? | | ??# # #??????????????? | | ??# # u +??????????????? | | ??# ##########%%! ##########??????????????? | | ??# #????????#! #???????????????????????? | | ??# #????????# t #???????????????????????? | | ??###########?????##% ##??????????????????????? | | ????# #?????# #??????????????????????? | | ????# ####### * #??????????????????????? | | ????# != !* #??????????????????????? | | ????# =!! ! +??????????????????????? | | ????# !!%!! =! #??????????????????????? | | ##### ####### #??????????????????????? | | # #?????# #??????????????????????? | | "" !### ########### ###??????????????????????? | | "" #?# # # #????????????????????????? | | "" #?# # # ???????????????????????? | | "" #?# + # ??????????????????????? | | !=#?# # # ?????????????????????? | | +####?# # # ???????????????????? | | #### ########### ??????????????????? | | % #??????????#+########??????????????????? | | = #??????????????????????????????????????? | +----------------------------------------------------+ Best States ------------- Heat Dissipation 50 Energy Generation 14 Energy Capacity 265 Matter Stores 300 Matter Capacity 450 Sight Range 16 Robot Scan Range 15 Terrain Scan Density 10 Armor Coverage 150 Core Shielding 20 Evasion (%) 55 Recoil Reduction 2 Item Schematics ----------------- None Robot Schematics ------------------ None Fabricated ------------ Nothing Repaired ---------- Nothing Alien Tech Used ----------------- None Achievements -------------- None Challenges ------------ None Game ------ Seed OmegaMultitargetingSaw Manual? 0 Play Time 00:51:07 Cumulative 38.2 hours Start 2025.10.15 @ 21:14:12 End 2025.10.15 @ 22:05:07 Sessions 1 Manual Loads 0 Difficulty Rogue Special Mode None Game No. 35 Rogue 30 Adventurer 0 Explorer 5 Win Type - Total 0 Types 0/0/0/0/0/0/0/0/0/0 Lore% 21 Gallery% 23 Achievement% 21 Wizard Run 0 Options --------- Layout 0 ASCII 0 Keyboard 1 Movement Arrows Keybinds 0 Fullscreen 2 Font 18/SmallcapsGlow Map View 76x50 Zoom Use 0% Tactical HUD 1 Map Filters NONE Filters NONE Steam 1 RUN: a6884557-d031-48cb-a4c2-a53fc38ffc9c